bitfinex-derivatives/quotes_BNBF0:USTF0_20250316
["timestamp","ask_amount","ask_price","bid_price","bid_amount"]
[1742157741769,2.84329027,602.43,601.11,0.3327178]
[1742157741969,0.27736265,602.42,601.11,0.3327178]
[1742157743172,0.27736177,602.41,601.11,0.3327178]
[1742157743369,0.27736177,602.42,601.11,0.3327178]
[1742157743971,0.27736177,602.42,601.12,0.30545705]
[1742157744271,2.51575315,602.82,601.12,0.30545705]
[1742157744272,0.27736177,602.41,601.13,0.33270673]
[1742157744464,0.27736177,602.43,601.14,0.30545705]
[1742157744669,0.27736177,602.42,601.15,0.33269566]
[1742157744972,0.27736177,602.41,601.15,0.33269566]
[1742157745172,0.27736177,602.4,601.15,0.33269566]
[1742157745471,0.27736177,602.39,601.15,0.33269566]
[1742157745673,0.27736177,602.42,601.15,0.33269566]
[1742157746572,3.9285649,602.42,601.15,0.33269566]
[1742157746769,3.65120313,602.42,601.15,0.33269566]
[1742157746970,0.2773938,602.41,601.15,0.33269566]
[1742157747170,0.2773938,602.42,601.15,0.33269566]
[1742157747370,0.2773938,602.41,601.15,0.33269566]
[1742157747566,0.2773938,602.42,601.15,0.33269566]
[1742157749575,0.3319998,602.41,601.15,0.33269566]
[1742157749875,0.2773938,602.4,601.15,0.33269566]
[1742157750267,0.33201082,602.39,601.15,0.33269566]
[1742157750468,0.27747343,602.38,601.15,0.317625]
[1742157750670,0.33202184,602.37,601.15,0.317625]
[1742157750867,0.27747343,602.36,601.15,0.317625]
[1742157751068,0.33203287,602.35,601.15,0.317625]
[1742157751268,0.27747343,602.34,601.15,0.317625]
[1742157751472,0.60951181,602.34,601.15,0.317625]
[1742157751778,0.27747343,602.33,601.15,0.317625]
[1742157751970,0.27747343,602.33,601.15,0.780625]
[1742157759774,0.27669895,602.32,601.15,0.780625]
[1742157760074,0.27669895,602.31,601.15,0.780625]
[1742157760371,0.27669895,602.33,601.15,0.780625]
[1742157760577,0.27669895,602.32,601.15,0.780625]
[1742157760778,0.27669895,602.33,601.15,0.780625]
[1742157761077,0.27669895,602.32,601.15,0.780625]
[1742157761278,0.27669895,602.33,601.15,0.780625]
[1742157761573,0.27669895,602.32,601.15,0.780625]
[1742157761779,0.27669895,602.33,601.15,0.780625]
[1742157763778,0.27666273,602.32,601.15,0.780625]
[1742157763977,0.27666273,602.31,601.15,0.780625]
[1742157764173,0.27666273,602.3,601.15,0.780625]
[1742157764484,0.27666273,602.29,601.15,0.780625]
[1742157764679,0.27666273,602.33,601.15,0.780625]
[1742157764980,0.27666273,602.32,601.15,0.780625]
[1742157765176,0.27666273,602.31,601.15,0.780625]
[1742157765377,0.27666273,602.33,601.15,0.780625]
[1742157765577,0.33203838,602.34,601.15,0.780625]
[1742157765772,0.27665842,602.33,601.15,0.780625]
[1742157769083,0.27665884,602.32,601.15,0.780625]
[1742157769284,0.27665884,602.33,601.15,0.780625]
[1742157769482,0.27665884,602.32,601.15,0.780625]
[1742157769678,0.27665884,602.33,601.15,0.780625]
[1742157769884,0.27665884,602.32,601.15,0.780625]
[1742157770085,0.27665884,602.33,601.15,0.780625]
[1742157774188,0.60870273,602.33,601.15,0.780625]
[1742157774382,0.27665884,602.32,601.15,0.780625]
[1742157776686,0.27677705,602.31,601.15,0.780625]
[1742157776989,0.27677705,602.3,601.15,0.780625]
[1742157777190,0.33206594,602.29,601.15,0.780625]
[1742157777390,0.27677705,602.28,601.15,0.780625]
[1742157777590,0.33207697,602.27,601.15,0.780625]
[1742157777785,0.27677705,602.26,601.15,0.780625]
[1742157778387,0.27678285,602.25,601.15,0.780625]
[1742157778586,0.27678285,602.26,601.15,0.780625]
[1742157778793,0.27678285,602.25,601.15,0.780625]
[1742157778987,0.27678285,602.26,601.15,0.780625]
[1742157783495,0.33207697,602.27,601.15,0.780625]
[1742157783697,0.2767787,602.26,601.15,0.780625]
[1742157786996,0.33207697,602.27,601.15,0.780625]
[1742157787200,0.27678615,602.26,601.15,0.780625]
[1742157796406,0.27670596,602.25,601.15,0.780625]
[1742157796708,0.27670596,602.24,601.15,0.780625]
[1742157796905,0.33207697,602.27,601.15,0.780625]
[1742157796906,0.27670596,602.26,601.15,0.780625]
[1742157800199,0.27670806,602.25,601.15,0.780625]
[1742157800404,0.27670806,602.26,601.15,0.780625]
[1742157800604,0.33207697,602.27,601.15,0.780625]
[1742157800605,0.27670806,602.25,601.15,0.780625]
[1742157800808,0.27670806,602.26,601.15,0.780625]
[1742157801007,0.27670806,602.25,601.15,0.780625]
[1742157801208,0.27670806,602.26,601.15,0.780625]
[1742157801404,0.27670806,602.25,601.15,0.780625]
[1742157801709,0.27670806,602.24,601.15,0.780625]
[1742157801909,0.27670806,602.26,601.15,0.780625]
[1742157802108,0.27670806,602.25,601.15,0.780625]
[1742157802408,0.27670806,602.24,601.15,0.780625]
[1742157802603,0.27670806,602.23,601.15,0.780625]
[1742157802809,0.27670806,602.26,601.15,0.780625]
[1742157803111,0.27670806,602.25,601.15,0.780625]
[1742157803413,0.27670806,602.24,601.15,0.780625]
[1742157803806,0.33207697,602.27,601.15,0.780625]
[1742157803807,0.27669916,602.23,601.15,0.780625]
[1742157804006,0.27669916,602.26,601.15,0.780625]
[1742157804209,0.27669916,602.25,601.15,0.780625]
[1742157804409,0.27669916,602.26,601.15,0.780625]
[1742157813118,0.2766447,602.25,601.15,0.780625]
[1742157813319,0.2766447,602.24,601.15,0.780625]
[1742157813518,0.2766447,602.26,601.15,0.780625]
[1742157813721,0.2766447,602.25,601.15,0.780625]
[1742157813917,0.2766447,602.26,601.15,0.780625]
[1742157818823,0.33207697,602.27,601.15,0.780625]
[1742157819022,0.27667911,602.26,601.15,0.780625]
[1742157820721,0.27668632,602.25,601.15,0.780625]
[1742157820921,0.27668632,602.24,601.15,0.780625]
[1742157821122,0.27668632,602.26,601.15,0.780625]
[1742157821325,0.27668632,602.25,601.15,0.780625]
[1742157821625,0.27668632,602.24,601.15,0.780625]
[1742157821825,0.27668632,602.26,601.15,0.780625]
[1742157822027,0.27668632,602.25,601.15,0.780625]
[1742157822428,0.33207697,602.27,601.15,0.780625]
[1742157822627,0.27668632,602.26,601.15,0.780625]
[1742157826324,0.27670704,602.25,601.15,0.780625]
[1742157826528,0.27670704,602.24,601.15,0.780625]
[1742157826724,0.27670704,602.23,601.15,0.780625]
[1742157826929,0.27670704,602.26,601.15,0.780625]
[1742157827127,0.27670704,602.25,601.15,0.780625]
[1742157827323,0.27670704,602.26,601.15,0.780625]
[1742157833533,0.27669242,602.25,601.15,0.780625]
[1742157833839,0.27669242,602.24,601.15,0.780625]
[1742157834035,0.27669242,602.26,601.15,0.780625]
[1742157834339,0.27669242,602.25,601.15,0.780625]
[1742157834534,0.27669242,602.26,601.15,0.780625]
[1742157839142,0.27669216,602.26,601.15,0.780625]
[1742157843040,3.12313505,602.26,601.15,0.780625]
[1742157843242,0.27669216,602.25,601.15,0.780625]
[1742157844244,0.27667344,602.24,601.15,0.780625]
[1742157844447,3.17851986,602.27,601.15,0.780625]
[1742157845245,0.27665471,602.26,601.15,0.780625]
[1742157854951,0.27665471,602.47,601.15,0.780625]
[1742157855146,0.27665471,602.46,601.15,0.780625]
[1742157855350,0.27665471,602.45,601.15,0.780625]
[1742157855551,2.85102322,602.48,601.15,0.780625]
[1742157855751,0.27661716,602.47,601.15,0.780625]
[1742157855952,3.94057661,602.57,601.15,0.780625]
[1742157856151,0.27661716,602.56,601.15,0.780625]
[1742157857349,3.12764038,602.56,601.15,0.780625]
[1742157857554,3.94057661,602.55,601.15,0.780625]
[1742157857753,0.27661716,602.54,601.15,0.780625]
[1742157859049,0.27661716,602.54,601.16,0.30542994]
[1742157859353,3.12764038,602.54,601.17,0.33268459]
[1742157859549,3.66395945,602.53,601.17,0.33268459]
[1742157859749,0.27661716,602.52,601.17,0.33268459]
[1742157860455,0.27662434,602.51,601.17,0.33268459]
[1742157860756,0.27662434,602.5,601.17,0.33268459]
[1742157860955,3.94058379,602.51,601.17,0.33268459]
[1742157861155,3.66395945,602.51,601.17,0.33268459]
[1742157861355,0.27662434,602.5,601.17,0.33268459]
[1742157862160,3.12764756,602.5,601.17,0.33268459]
[1742157862362,0.27662434,602.49,601.17,0.33268459]
[1742157863261,0.27662434,602.49,601.17,0.97968459]
[1742157863862,5.46793363,602.66,601.17,0.97968459]
[1742157864063,2.13710464,602.65,601.17,0.97968459]
[1742157864258,0.60849743,602.64,601.18,0.30543745]
[1742157864463,0.60850293,602.63,601.19,0.33267353]
[1742157864658,0.60850844,602.62,601.19,0.33267353]
[1742157864864,0.60851395,602.61,601.19,0.33267353]
[1742157865063,0.60851946,602.6,601.19,0.33267353]
[1742157865362,0.27662434,602.59,601.19,0.33267353]
[1742157865760,0.27662434,602.58,601.2,0.30543324]
[1742157865957,0.27662434,602.57,601.21,0.33266246]
[1742157866158,0.27662434,602.56,601.21,0.33266246]
[1742157866358,0.27662434,602.55,601.21,0.33266246]
[1742157866663,0.27662434,602.54,601.21,0.33266246]
[1742157866859,0.27662434,602.53,601.21,0.33266246]
[1742157867163,0.33189512,602.6,601.21,0.33266246]
[1742157867164,0.27662434,602.52,601.21,0.33266246]
[1742157867364,0.27662434,602.59,601.21,0.33266246]
[1742157867559,0.27662434,602.58,601.21,0.33266246]
[1742157867759,0.27662434,602.57,601.21,0.33266246]
[1742157867966,0.27662434,602.56,601.21,0.33266246]
[1742157868262,0.27662434,602.55,601.21,0.33266246]
[1742157868465,0.27662434,602.54,601.21,0.33266246]
[1742157868664,0.27662434,602.53,601.21,0.33266246]
[1742157868964,0.27662434,602.52,601.21,0.33266246]
[1742157869165,0.27662434,602.57,601.21,0.33266246]
[1742157869360,0.27662434,602.56,601.21,0.33266246]
[1742157869561,0.27662434,602.55,601.21,0.33266246]
[1742157869760,0.27662434,602.54,601.21,0.33266246]
[1742157869960,0.27662434,602.53,601.21,0.33266246]
[1742157870165,0.27662434,602.55,601.21,0.33266246]
[1742157870465,0.27662434,602.54,601.21,0.33266246]
[1742157870660,0.27662434,602.53,601.21,0.33266246]
[1742157870864,0.27662434,602.54,601.21,0.33266246]
[1742157871066,0.60855801,602.53,601.21,0.33266246]
[1742157871267,0.60856352,602.52,601.21,0.33266246]
[1742157871466,0.60856903,602.51,601.21,0.33266246]
[1742157871762,0.60857454,602.5,601.21,0.33266246]
[1742157871968,0.60858005,602.49,601.21,0.33266246]
[1742157872171,0.33196122,602.48,601.21,0.33266246]
[1742157872469,0.27667324,602.47,601.21,0.33266246]
[1742157880173,0.27667324,602.46,601.21,0.33266246]
[1742157880473,0.27667324,602.45,601.21,0.33266246]
[1742157880666,0.27667324,602.44,601.21,0.33266246]
[1742157880871,0.27667324,602.43,601.21,0.33266246]
[1742157881070,0.27667324,602.42,601.21,0.33266246]
[1742157881270,0.27667324,602.41,601.21,0.33266246]
[1742157881468,0.60870269,602.4,601.21,0.33266246]
[1742157881671,0.27669738,602.39,601.21,0.33266246]
[1742157881868,0.33200531,602.4,601.21,0.33266246]
[1742157881869,0.27669738,602.38,601.21,0.33266246]
[1742157882173,0.27669738,602.37,601.21,0.33266246]
[1742157882469,0.27669738,602.36,601.21,0.33266246]
[1742157882670,0.27669738,602.35,601.21,0.33266246]
[1742157882873,0.27669738,602.34,601.21,0.33266246]
[1742157883074,5.52246023,602.4,601.21,0.33266246]
[1742157883268,1.80517432,602.39,601.21,0.33266246]
[1742157883468,0.2767034,602.38,601.21,0.33266246]
[1742157883775,0.2767034,602.37,601.21,0.33266246]
[1742157883974,0.2767034,602.36,601.21,0.33266246]
[1742157884176,0.2767034,602.35,601.21,0.33266246]
[1742157884375,0.2767034,602.34,601.22,0.656]
[1742157884573,0.2767034,602.33,601.22,0.656]
[1742157885076,0.2767034,602.32,601.22,0.656]
[1742157885276,1.80517432,602.35,601.22,0.656]
[1742157885476,0.2767034,602.34,601.22,0.656]
[1742157885677,0.2767034,602.33,601.22,0.656]
[1742157886073,0.2767034,602.32,601.22,0.656]
[1742157886271,0.2767034,602.35,601.22,0.656]
[1742157886474,0.2767034,602.31,601.22,0.656]
[1742157886772,0.2767034,602.3,601.22,0.656]
[1742157887079,0.2767034,602.29,601.22,0.656]
[1742157887374,3.661984,602.34,601.22,0.656]
[1742157887375,0.2767034,602.28,601.22,0.656]
[1742157887572,0.2767034,602.27,601.22,0.656]
[1742157887776,0.2767034,602.26,601.22,0.656]
[1742157887976,0.2767034,602.33,601.22,0.656]
[1742157888172,0.2767034,602.32,601.22,0.656]
[1742157888375,0.2767034,602.33,601.22,0.656]
[1742157888678,0.2767034,602.32,601.22,0.656]
[1742157889471,3.93893053,602.32,601.22,0.656]
[1742157889676,0.2767034,602.31,601.22,0.656]
[1742157889872,3.93893053,602.32,601.22,0.656]
[1742157890077,0.2767034,602.31,601.22,0.656]
[1742157890577,0.2767034,602.3,601.22,0.656]
[1742157890776,2.85102322,602.31,601.22,0.656]
[1742157890978,0.2767034,602.3,601.22,0.656]
[1742157891377,0.2767034,602.3,601.21,0.33266246]
[1742157892175,2.85102322,602.31,601.21,0.33266246]
[1742157892370,0.27667078,602.3,601.21,0.33266246]
[1742157893178,0.27667078,602.39,601.21,0.33266246]
[1742157893378,0.27667078,602.38,601.21,0.33266246]
[1742157893675,0.27667078,602.37,601.21,0.33266246]
[1742157893978,0.27667078,602.36,601.21,0.33266246]
[1742157894178,0.27667078,602.39,601.21,0.33266246]
[1742157894378,0.27667078,602.38,601.21,0.33266246]
[1742157894578,0.27667078,602.39,601.21,0.33266246]
[1742157894774,0.27667078,602.38,601.21,0.33266246]
[1742157894974,0.27667078,602.37,601.21,0.33266246]
[1742157895178,0.27667078,602.39,601.21,0.33266246]
[1742157895377,0.27667078,602.38,601.21,0.33266246]
[1742157895577,0.27667078,602.39,601.21,0.33266246]
[1742157895774,0.27667078,602.38,601.21,0.33266246]
[1742157895978,0.27667078,602.39,601.21,0.33266246]
[1742157896177,0.27667078,602.38,601.21,0.33266246]
[1742157896377,0.27667078,602.37,601.21,0.33266246]
[1742157896579,0.27667078,602.36,601.21,0.33266246]
[1742157896881,0.27667078,602.35,601.22,0.627]
[1742157897078,0.27667078,602.39,601.22,0.627]
[1742157897379,0.27667078,602.38,601.23,0.33265139]
[1742157897580,0.27667078,602.39,601.23,0.33265139]
[1742157897780,0.27667078,602.38,601.23,0.33265139]
[1742157897980,0.27667078,602.39,601.23,0.33265139]
[1742157898181,0.27667078,602.38,601.23,0.33265139]
[1742157898381,0.27667078,602.39,601.23,0.33265139]
[1742157898581,0.27667078,602.38,601.23,0.33265139]
[1742157898781,0.27667078,602.39,601.23,0.33265139]
[1742157899480,0.33200531,602.4,601.23,0.33265139]
[1742157899685,0.27664307,602.39,601.23,0.33265139]
[1742157901881,0.2766434,602.38,601.23,0.33265139]
[1742157902084,0.2766434,602.39,601.23,0.33265139]
[1742157902284,0.2766434,602.38,601.23,0.33265139]
[1742157902484,0.2766434,602.39,601.23,0.33265139]
[1742157902688,0.2766434,602.37,601.23,0.33265139]
[1742157902888,0.2766434,602.36,601.23,0.33265139]
[1742157903090,0.2766434,602.39,601.23,0.33265139]
[1742157903286,0.2766434,602.38,601.23,0.33265139]
[1742157903491,0.2766434,602.39,601.23,0.33265139]
[1742157903690,0.2766434,602.38,601.23,0.33265139]
[1742157903990,0.2766434,602.39,601.23,0.33265139]
[1742157904187,0.2766434,602.38,601.23,0.33265139]
[1742157904389,0.2766434,602.39,601.23,0.33265139]
[1742157904594,0.33200531,602.4,601.23,0.33265139]
[1742157904792,0.27664521,602.39,601.23,0.33265139]
[1742157908197,0.33200531,602.4,601.23,0.33265139]
[1742157908397,0.27664436,602.39,601.23,0.33265139]
[1742157910793,0.27666651,602.38,601.23,0.33265139]
[1742157910991,0.27666651,602.39,601.23,0.33265139]
[1742157911297,0.27666651,602.38,601.23,0.33265139]
[1742157911498,0.27666651,602.39,601.23,0.33265139]
[1742157911696,0.27666651,602.38,601.23,0.33265139]
[1742157912092,0.27666651,602.37,601.23,0.33265139]
[1742157912290,0.27666651,602.36,601.23,0.33265139]
[1742157912494,0.27666651,602.39,601.23,0.33265139]
[1742157912696,0.27666651,602.38,601.23,0.33265139]
[1742157912896,0.27666651,602.39,601.23,0.33265139]
[1742157913096,0.27666651,602.38,601.23,0.33265139]
[1742157913296,0.27666651,602.37,601.23,0.33265139]
[1742157913699,0.27666651,602.36,601.23,0.33265139]
[1742157913900,0.33200531,602.4,601.23,0.33265139]
[1742157914102,0.27671127,602.39,601.23,0.33265139]
[1742157914295,0.27671127,602.38,601.23,0.33265139]
[1742157914500,0.27671127,602.37,601.23,0.33265139]
[1742157914699,0.27671127,602.36,601.23,0.33265139]
[1742157914901,0.27671127,602.35,601.23,0.33265139]
[1742157915101,0.27671127,602.34,601.23,0.33265139]
[1742157915400,0.27671127,602.33,601.23,0.33265139]
[1742157915602,0.27671127,602.39,601.23,0.33265139]
[1742157915801,0.27671127,602.38,601.23,0.33265139]
[1742157916101,0.27671127,602.37,601.23,0.33265139]
[1742157916293,0.27671127,602.39,601.23,0.33265139]
[1742157917895,0.27671127,602.38,601.23,0.33265139]
[1742157918200,0.27671127,602.37,601.23,0.33265139]
[1742157918402,0.27671127,602.36,601.23,0.33265139]
[1742157918596,0.27671127,602.35,601.23,0.33265139]
[1742157918801,0.27671127,602.34,601.23,0.33265139]
[1742157919001,0.27671127,602.33,601.23,0.33265139]
[1742157919303,0.27671127,602.32,601.23,0.33265139]
[1742157919497,0.27671127,602.31,601.23,0.33265139]
[1742157919701,0.27671127,602.3,601.23,0.33265139]
[1742157920101,0.27671127,602.29,601.23,0.33265139]
[1742157920297,0.27671127,602.28,601.23,0.33265139]
[1742157920498,0.27671127,602.36,601.23,0.33265139]
[1742157920698,0.60877153,602.35,601.23,0.33265139]
[1742157920904,0.60877704,602.34,601.23,0.33265139]
[1742157921102,2.51575315,602.32,601.23,0.33265139]
[1742157921296,3.93901312,602.31,601.23,0.33265139]
[1742157921501,0.27673866,602.3,601.23,0.33265139]
[1742157923097,3.12776188,602.3,601.23,0.33265139]
[1742157923297,3.93901312,602.29,601.23,0.33265139]
[1742157923504,0.27673866,602.28,601.23,0.33265139]
[1742157924198,0.27673866,602.27,601.23,0.33265139]
[1742157924402,3.12776188,602.28,601.23,0.33265139]
[1742157924602,0.27673866,602.27,601.23,0.33265139]
[1742157925003,2.85102322,602.28,601.23,0.33265139]
[1742157925200,0.27673428,602.27,601.23,0.33265139]
[1742157926608,0.27673428,602.33,601.23,0.33265139]
[1742157926809,0.60877817,602.33,601.23,0.33265139]
[1742157927009,0.27673428,602.32,601.23,0.33265139]
[1742157929506,0.27672297,602.31,601.23,0.33265139]
[1742157929812,0.27672297,602.3,601.23,0.33265139]
[1742157930112,0.27672297,602.29,601.23,0.33265139]
[1742157930414,0.27672297,602.28,601.23,0.33265139]
[1742157930612,0.27672297,602.32,601.23,0.33265139]
[1742157930906,0.33204389,602.33,601.23,0.33265139]
[1742157930907,0.27672043,602.31,601.23,0.33265139]
[1742157931112,0.27672043,602.32,601.23,0.33265139]
[1742157931309,0.27672043,602.31,601.23,0.33265139]
[1742157931510,0.27672043,602.3,601.23,0.33265139]
[1742157931709,0.27672043,602.29,601.23,0.33265139]
[1742157932010,0.27672043,602.28,601.23,0.33265139]
[1742157932208,0.27672043,602.32,601.23,0.33265139]
[1742157932414,0.27672043,602.31,601.23,0.33265139]
[1742157932707,0.27672043,602.32,601.23,0.33265139]
[1742157935710,0.27672043,602.31,601.23,0.33265139]
[1742157935910,0.27672043,602.3,601.23,0.33265139]
[1742157936111,0.27672043,602.29,601.23,0.33265139]
[1742157936414,0.27672043,602.28,601.23,0.33265139]
[1742157936612,0.27672043,602.27,601.23,0.33265139]
[1742157936807,0.27672043,602.26,601.23,0.33265139]
[1742157937113,0.27672043,602.25,601.23,0.33265139]
[1742157937310,0.27672043,602.32,601.23,0.33265139]
[1742157937512,0.27672043,602.31,601.24,0.667]
[1742157937813,0.27672043,602.3,601.24,0.667]
[1742157938313,0.27672043,602.29,601.24,0.667]
[1742157938509,0.60879189,602.28,601.24,0.667]
[1742157938814,0.27672043,602.27,601.24,0.667]
[1742157939014,0.27672043,602.26,601.24,0.667]
[1742157939209,0.27672043,602.25,601.24,0.667]
[1742157939412,0.27672043,602.24,601.24,0.667]
[1742157939608,0.33207146,602.28,601.24,0.667]
[1742157939609,0.27672043,602.23,601.24,0.667]
[1742157939808,0.27672043,602.22,601.24,0.667]
[1742157940116,0.27672043,602.21,601.24,0.667]
[1742157940314,2.51575315,602.23,601.24,0.667]
[1742157940513,5.46784403,602.22,601.24,0.667]
[1742157940712,0.27687932,602.21,601.24,0.667]
[1742157940912,3.12790254,602.21,601.24,0.667]
[1742157941113,0.27687932,602.2,601.24,0.667]
[1742157941514,0.33212109,602.19,601.24,0.667]
[1742157941712,0.27687932,602.18,601.24,0.667]
[1742157942114,0.33213212,602.17,601.24,0.667]
[1742157942313,0.27687932,602.16,601.24,0.667]
[1742157942917,0.33214315,602.15,601.24,0.667]
[1742157943113,0.27687932,602.14,601.24,0.667]
[1742157943319,0.33215418,602.13,601.24,0.667]
[1742157943517,0.27687932,602.12,601.24,0.667]
[1742157943715,0.33216521,602.11,601.24,0.667]
[1742157944013,0.27685524,602.1,601.24,0.667]
[1742157944215,0.60902597,602.1,601.24,0.667]
[1742157944417,0.27685524,602.09,601.24,0.667]
[1742157947315,0.33217073,602.1,601.24,0.667]
[1742157947522,0.27682615,602.09,601.24,0.667]
[1742157952428,0.27682615,602.09,599.81,1.24242946]
[1742157952628,0.27682615,602.09,599.82,0.30571675]
[1742157952928,0.33217073,602.1,599.93,0.33337222]
[1742157952929,0.33218176,602.08,599.93,0.33337222]
[1742157953130,0.27689722,602.07,599.94,0.30571455]
[1742157953330,0.3321928,602.06,600.04,0.33331111]
[1742157953530,0.27689722,602.05,600.05,0.30571455]
[1742157953928,0.27689722,602.05,600.07,0.33329444]
[1742157954126,0.33220384,602.04,600.08,0.30571455]
[1742157954329,0.27689722,602.03,600.08,0.30571455]
[1742157954527,0.33221487,602.02,600.1,0.33327778]
[1742157954928,0.27689722,602.01,600.11,0.30571455]
[1742157955131,0.27689722,602.01,600.13,0.33326112]
[1742157955334,0.27689722,602.01,600.14,0.30571455]
[1742157955635,0.33222591,602.0,600.16,0.33324446]
[1742157955832,0.27689722,601.99,600.17,0.30571455]
[1742157956232,0.33223695,601.98,600.19,0.33322781]
[1742157956532,0.27690177,601.97,600.2,0.30571924]
[1742157956733,0.27690177,601.97,600.22,0.33321115]
[1742157956935,0.33224798,601.96,600.23,0.30571924]
[1742157957135,0.27690177,601.95,600.25,0.3331945]
[1742157957334,0.27690177,601.95,600.26,0.30571924]
[1742157958833,0.27690177,601.95,600.28,0.33317785]
[1742157959029,0.27690177,601.95,600.29,0.30571924]
[1742157959334,0.33225902,601.94,600.3,0.33316674]
[1742157959526,0.27690177,601.93,600.31,0.30571924]
[1742157959728,0.27690177,601.93,600.33,0.3331501]
[1742157959932,0.33227006,601.92,600.34,0.30571924]
[1742157960131,0.27690177,601.91,600.35,0.333139]
[1742157960327,0.27690177,601.91,600.36,0.30571924]
[1742157960733,0.3322811,601.9,600.37,0.3331279]
[1742157960951,0.27690177,601.89,600.38,0.30571924]
[1742157961835,0.27690177,601.89,600.39,0.3331168]
[1742157963329,0.3322811,601.9,600.39,0.3331168]
[1742157963634,0.27702697,601.89,600.39,0.3331168]
[1742157963836,0.33229215,601.88,600.39,0.3331168]
[1742157964029,0.27702697,601.87,600.39,0.3331168]
[1742157964234,0.33230319,601.86,600.39,0.3331168]
[1742157964433,0.27702697,601.85,600.39,0.3331168]
[1742157965034,0.33230319,601.86,600.39,0.3331168]
[1742157965334,0.27703682,601.85,600.39,0.3331168]
[1742157965936,0.33231423,601.84,600.39,0.3331168]
[1742157966138,0.27703682,601.83,600.39,0.3331168]
[1742157966330,0.33232527,601.82,600.39,0.3331168]
[1742157966636,0.27703682,601.81,600.39,0.3331168]
[1742157966837,0.33233632,601.8,600.39,0.3331168]
[1742157967237,0.27703682,601.79,600.39,0.3331168]
[1742157967433,0.33234736,601.78,600.39,0.3331168]
[1742157967634,0.27703682,601.77,600.39,0.3331168]
[1742157967829,0.33235841,601.76,600.39,0.3331168]
[1742157968037,0.27703682,601.75,600.39,0.3331168]
[1742157968237,0.60940075,601.75,600.39,0.3331168]
[1742157968536,0.27703682,601.74,600.39,0.3331168]
[1742157970133,0.33237498,601.73,600.39,0.3331168]
[1742157970335,0.27703682,601.72,600.39,0.3331168]
[1742157970533,0.33238603,601.71,600.39,0.3331168]
[1742157970736,0.27703682,601.7,600.39,0.3331168]
[1742157972435,0.33238603,601.71,600.39,0.3331168]
[1742157972634,0.27698657,601.7,600.39,0.3331168]
[1742157974847,0.33238603,601.71,600.39,0.3331168]
[1742157975046,0.27698111,601.7,600.39,0.3331168]
[1742157976248,0.27698348,601.69,600.39,0.3331168]
[1742157976449,0.27698348,601.7,600.39,0.3331168]
[1742157976649,0.27698348,601.69,600.39,0.3331168]
[1742157976850,0.27698348,601.7,600.39,0.3331168]
[1742157977051,0.27698348,601.69,600.39,0.3331168]
[1742157977244,0.27698348,601.7,600.39,0.3331168]
[1742157977450,0.27698348,601.69,600.39,0.3331168]
[1742157977653,0.27698348,601.7,600.39,0.3331168]
[1742157977844,0.27698348,601.69,600.39,0.3331168]
[1742157978045,0.27699094,601.68,600.39,0.3331168]
[1742157978247,0.27699094,601.67,600.39,0.3331168]
[1742157978452,0.27699094,601.66,600.39,0.3331168]
[1742157978656,0.27699094,601.65,600.39,0.3331168]
[1742157978854,0.27699094,601.64,600.39,0.3331168]
[1742157979157,0.27699094,601.63,600.39,0.3331168]
[1742157979354,0.27699094,601.7,600.39,0.3331168]
[1742157979554,0.27699094,601.69,600.39,0.3331168]
[1742157979857,0.27699094,601.68,600.39,0.3331168]
[1742157980051,0.27699094,601.7,600.39,0.3331168]
[1742157980256,0.27699094,601.69,600.39,0.3331168]
[1742157980556,0.27699094,601.68,600.39,0.3331168]
[1742157980951,0.27699094,601.67,600.39,0.3331168]
[1742157981154,0.27699094,601.7,600.39,0.3331168]
[1742157981353,0.27699094,601.69,600.39,0.3331168]
[1742157981754,0.27699094,601.7,600.39,0.3331168]
[1742157981955,0.33238603,601.71,600.39,0.3331168]
[1742157981956,0.27699094,601.69,600.39,0.3331168]
[1742157982154,0.27699094,601.7,600.39,0.3331168]
[1742157982355,0.27699094,601.69,600.4,0.30581629]
[1742157982550,0.27699094,601.7,600.41,0.33310571]
[1742157982758,0.27699094,601.69,600.42,0.30581629]
[1742157982951,0.27699094,601.68,600.43,0.33309461]
[1742157983158,0.27699094,601.67,600.44,0.30581629]
[1742157983358,0.33238603,601.71,600.45,0.33308352]
[1742157983359,0.27699094,601.7,600.45,0.33308352]
[1742157983558,0.27699094,601.69,600.46,0.30581629]
[1742157983752,0.27699094,601.7,600.47,0.33307242]
[1742157983952,0.27699094,601.69,600.47,0.33307242]
[1742157984157,0.27699094,601.7,600.47,0.33307242]
[1742157984356,0.27699094,601.69,600.47,0.33307242]
[1742157984557,0.27699094,601.7,600.47,0.33307242]
[1742157984753,0.27699094,601.69,600.47,0.33307242]
[1742157984954,0.27699094,601.7,600.47,0.33307242]
[1742157985153,0.27699094,601.68,600.47,0.33307242]
[1742157985351,0.33238603,601.71,600.47,0.33307242]
[1742157985352,0.27699094,601.67,600.47,0.33307242]